bitfinex/quotes_ETHUSD_20251021
["timestamp","ask_amount","ask_price","bid_price","bid_amount"]
[1761037382076,24.99105434,3871.2,3871.1,0.002]
[1761037382380,40.65420761,3871.2,3871.1,0.002]
[1761037382677,42.09332461,3871.2,3871.1,0.002]
[1761037382877,42.49855506,3871.2,3871.1,0.002]
[1761037383074,36.94577461,3871.2,3871.1,0.002]
[1761037383645,39.74655561,3871.2,3871.1,0.002]
[1761037383840,39.07604461,3871.2,3871.1,0.002]
[1761037384166,39.40851301,3871.2,3871.1,0.002]
[1761037384558,47.88435901,3871.2,3871.1,0.002]
[1761037384756,44.80662701,3871.2,3871.1,0.002]
[1761037385345,42.88662701,3871.2,3871.1,0.002]
[1761037385749,50.30680001,3871.2,3871.1,0.002]
[1761037385948,19.89799028,3870.8,3870.7,0.002]
[1761037386153,30.69315416,3870.8,3870.7,0.002]
[1761037386362,28.23182116,3870.8,3870.7,0.002]
[1761037386750,29.32508816,3870.8,3870.7,0.002]
[1761037387686,30.59190616,3870.8,3870.7,0.002]
[1761037387872,29.48006316,3870.8,3870.7,0.002]
[1761037388757,30.21868716,3870.8,3870.7,0.002]
[1761037389787,25.91748316,3870.8,3870.7,0.002]
[1761037390884,43.85010916,3870.8,3870.7,0.002]
[1761037391852,43.37860916,3870.8,3870.7,0.002]
[1761037393658,43.85010916,3870.8,3870.7,0.002]
[1761037394089,44.53090307,3870.8,3870.7,0.002]
[1761037394467,44.53090307,3870.8,3870.3,0.002]
[1761037394468,40.08787615,3870.4,3870.3,0.002]
[1761037394657,43.72720166,3870.4,3870.3,0.002]
[1761037394858,44.19870166,3870.4,3870.3,0.002]
[1761037395090,19.50336554,3870.4,3870.3,0.002]
[1761037395297,2.58384579,3870.2,3867.9,0.1668]
[1761037395589,1.728,3868.5,3868.0,0.4349]
[1761037395793,5.019,3868.5,3868.0,1.21235283]
[1761037396295,1.728,3868.3,3868.1,0.4349]
[1761037396480,1.728,3868.4,3868.1,0.57281528]
[1761037396961,1.728,3868.4,3868.2,0.4349]
[1761037397588,4.31305099,3868.4,3868.2,0.4349]
[1761037397992,1.728,3868.4,3868.2,0.4349]
[1761037398473,1.728,3868.4,3868.3,0.4556]
[1761037399161,4.31304808,3868.4,3868.3,0.4556]
[1761037399391,3.291,3868.5,3868.3,0.4556]
[1761037399581,1.728,3868.4,3868.3,0.4556]
[1761037399780,1.728,3868.4,3868.0,0.77745283]
[1761037399960,1.728,3868.4,3868.1,0.48145248]
[1761037401055,4.31306861,3868.4,3868.1,0.4556]
[1761037401491,1.728,3868.4,3868.1,0.4556]
[1761037401661,1.728,3868.7,3868.1,0.4556]
[1761037401862,5.77616388,3869.4,3868.1,0.4556]
[1761037402061,1.728,3869.0,3868.4,2.58500524]
[1761037402262,4.31267729,3869.0,3868.3,2.58511137]
[1761037402489,1.728,3869.0,3868.3,0.4556]
[1761037402671,1.728,3869.0,3868.4,0.4556]
[1761037403188,3.291,3869.1,3868.4,0.4556]
[1761037403518,3.291,3869.1,3868.5,2.5849628]
[1761037403705,2.58455525,3869.2,3868.6,0.30405628]
[1761037403879,1.728,3869.1,3868.6,0.75965628]
[1761037404276,1.728,3869.1,3868.7,1.23288362]
[1761037404663,2.58438275,3869.4,3868.8,0.4556]
[1761037404911,2.58455784,3869.2,3868.8,0.60929399]
[1761037405412,2.58455784,3869.2,3869.1,0.1914]
[1761037405826,2.58455784,3869.2,3869.1,1.2314]
[1761037407943,3.291,3869.3,3869.1,1.2314]
[1761037408246,5.019,3869.3,3869.2,0.4556]
[1761037409437,1.728,3869.3,3869.2,0.4556]
[1761037409784,1.728,3869.3,3869.2,0.59162]
[1761037412978,3.291,3869.6,3869.2,0.59162]
[1761037413184,1.728,3869.5,3869.2,0.13602]
[1761037413456,1.728,3869.5,3869.3,0.4307]
[1761037413854,1.728,3869.5,3869.3,1.20785274]
[1761037414156,1.728,3869.5,3869.3,1.63272349]
[1761037414364,1.728,3869.5,3869.4,0.4307]
[1761037416469,1.728,3869.5,3869.4,1.20785274]
[1761037418575,3.291,3869.9,3869.5,2.5843095]
[1761037418869,2.58391781,3870.1,3869.6,0.65054063]
[1761037418870,5.019,3870.1,3869.6,0.65054063]
[1761037419167,5.019,3870.1,3869.6,1.08124063]
[1761037419361,5.019,3870.1,3869.4,2.71316374]
[1761037419362,2.58399136,3870.0,3869.7,1.20779235]
[1761037419671,2.58411287,3869.8,3869.7,0.77709235]
[1761037420583,1.728,3869.8,3869.7,0.77709235]
[1761037420785,4.31211287,3869.8,3869.7,0.77709235]
[1761037421260,2.58431321,3869.5,3869.1,0.1914]
[1761037421459,2.58439358,3869.4,3869.1,0.3202]
[1761037421664,2.58433876,3869.5,3869.1,0.3202]
[1761037422080,2.58433876,3869.5,3869.2,0.77709235]
[1761037422481,2.58438184,3869.4,3869.2,0.77709235]
[1761037423681,2.58438184,3869.4,3869.1,0.3202]
[1761037423890,2.58438184,3869.4,3869.1,1.09729235]
[1761037426193,1.728,3869.5,3869.1,0.3202]
[1761037426489,2.58433744,3869.5,3869.2,0.77719301]
[1761037426658,2.58440517,3869.4,3869.2,0.77719301]
[1761037426863,2.58440517,3869.4,3869.1,0.3202]
[1761037427070,2.58440517,3869.4,3869.1,1.09739301]
[1761037427284,2.58432634,3869.5,3869.1,1.09739301]
[1761037427487,3.4188,3869.7,3869.1,1.09739301]
[1761037427681,3.4188,3869.7,3869.1,1.89650197]
[1761037427877,2.58424643,3869.6,3869.1,1.89650197]
[1761037428193,2.58432818,3869.5,3869.1,1.89650197]
[1761037428388,2.58432818,3869.5,3869.1,1.11930896]
[1761037428699,2.58432818,3869.5,3869.2,0.77719301]
[1761037429298,2.58432818,3869.5,3869.1,1.11930896]
[1761037429596,2.58438208,3869.4,3869.1,1.11930896]
[1761037429797,2.58438208,3869.4,3869.1,0.68860896]
[1761037430169,6.00298829,3869.7,3869.1,0.68860896]
[1761037430170,2.58433645,3869.5,3869.1,1.46580197]
[1761037430795,2.58433645,3869.5,3869.1,0.68860896]
[1761037430968,2.58433645,3869.5,3869.2,0.77719301]
[1761037431300,1.728,3869.6,3869.2,4.19760469]
[1761037431597,1.728,3869.6,3869.3,0.4307]
[1761037431964,4.31230249,3869.6,3869.3,1.20785475]
[1761037432171,1.728,3869.6,3869.3,1.20785475]
[1761037432369,4.31225372,3869.6,3869.3,1.20785475]
[1761037433009,4.31225372,3869.6,3869.3,0.77715475]
[1761037433197,1.728,3869.6,3869.3,0.4307]
[1761037433400,1.728,3869.6,3869.1,3.68193455]
[1761037433712,1.728,3869.6,3869.4,0.4307]
[1761037433914,1.728,3869.6,3869.2,0.4307]
[1761037434474,1.728,3869.6,3869.2,0.89006573]
[1761037434927,4.3122543,3869.6,3869.3,1.20785677]
[1761037435483,2.58431921,3869.5,3869.3,0.77715677]
[1761037438128,2.58438,3869.4,3869.3,0.77715677]
[1761037438422,2.58448853,3869.3,3869.0,0.002]
[1761037438923,3.04841359,3869.2,3869.1,0.77715677]
[1761037439092,2.71338039,3869.1,3869.0,0.002]
[1761037439286,3.17728039,3869.1,3869.0,0.002]
[1761037439711,2.71338039,3869.1,3869.0,0.002]
[1761037440315,3.52303305,3869.1,3869.0,0.002]
[1761037440797,3.17728039,3869.1,3869.0,0.002]
[1761037441386,4.90528039,3869.1,3869.0,0.002]
[1761037442412,7.73038039,3869.1,3869.0,0.002]
[1761037444722,8.17358039,3869.1,3869.0,0.002]
[1761037446330,7.73038039,3869.1,3869.0,0.002]
[1761037447809,14.67786812,3869.1,3869.0,0.002]
[1761037448028,15.35866203,3869.1,3869.0,0.002]
[1761037448227,14.67786812,3869.1,3869.0,0.002]
[1761037450595,14.23466812,3869.1,3869.0,0.002]
[1761037450813,7.73038039,3869.1,3869.0,0.002]
[1761037451011,14.67786812,3869.1,3869.0,0.002]
[1761037454197,14.23466812,3869.1,3869.0,0.002]
[1761037454423,14.67786812,3869.1,3869.0,0.002]
[1761037457538,14.23466812,3869.1,3869.0,0.002]
[1761037457905,7.73038039,3869.1,3869.0,0.002]
[1761037459633,5.1458,3869.1,3869.0,0.002]
[1761037459937,2.58407568,3869.9,3869.0,0.4543]
[1761037459938,3.4178,3869.4,3869.0,0.4543]
[1761037460148,6.00222614,3869.4,3869.1,0.1914]
[1761037460348,3.4178,3869.4,3869.1,0.1914]
[1761037460547,1.728,3869.3,3869.1,0.6437]
[1761037460837,2.58445695,3869.3,3869.1,0.6437]
[1761037460999,1.728,3869.2,3869.1,0.6437]
[1761037461405,1.728,3869.2,3869.1,0.1914]
[1761037461649,22.53392239,3869.1,3869.0,0.002]
[1761037461853,24.57459139,3869.1,3869.0,0.002]
[1761037462133,25.2553853,3869.1,3869.0,0.002]
[1761037462348,25.2553853,3869.1,3868.6,0.002]
[1761037462349,32.58484762,3868.7,3868.6,0.002]
[1761037462546,44.10613535,3868.7,3868.6,0.002]
[1761037462706,45.25172926,3868.7,3868.6,0.002]
[1761037463103,45.86982926,3868.7,3868.6,0.002]
[1761037463352,45.86982926,3868.7,3866.5,2.58630964]
[1761037463353,2.58580759,3867.3,3866.4,0.4523]
[1761037463512,2.58520157,3868.2,3866.4,0.4523]
[1761037463513,3.289,3867.2,3866.4,0.4523]
[1761037463712,2.58603566,3867.0,3866.4,0.4523]
[1761037463942,2.58605683,3866.9,3866.4,0.4523]
[1761037464116,2.58605683,3866.9,3866.4,0.30388585]
[1761037464325,1.728,3866.7,3866.0,0.4523]
[1761037464537,3.289,3866.8,3866.0,0.4523]
[1761037464538,1.728,3866.5,3866.0,0.4523]
[1761037464845,2.58633395,3866.5,3866.0,0.4523]
[1761037465264,1.728,3866.7,3866.0,0.4523]
[1761037465456,1.728,3866.7,3866.0,3.03894092]
[1761037465828,1.728,3866.7,3866.1,3.03888554]
[1761037466029,1.728,3866.7,3866.2,0.30647527]
[1761037466250,1.728,3866.7,3866.1,0.4523]
[1761037466446,1.728,3866.7,3865.9,0.4523]
[1761037466657,2.58632489,3866.5,3865.9,0.4523]
[1761037466861,1.728,3866.7,3866.0,2.58663991]
[1761037467361,1.728,3866.7,3866.1,0.4523]
[1761037467562,1.728,3866.7,3866.1,1.06556043]
[1761037467750,0.2146,3867.2,3866.1,1.06556043]
[1761037467751,2.58518173,3868.2,3867.0,2.58592969]
[1761037467938,2.58531782,3868.0,3866.7,0.50688]
[1761037468142,5.87427963,3868.1,3867.0,2.58596435]
[1761037468466,1.728,3867.7,3867.1,0.6181]
[1761037468695,5.87427963,3868.1,3867.2,0.37109444]
[1761037468696,2.58539769,3867.9,3867.2,0.37109444]
[1761037468872,4.31346075,3867.8,3867.2,0.82339444]
[1761037469075,5.87544988,3867.8,3867.2,0.82339444]
[1761037469257,1.728,3867.7,3867.3,0.4523]
[1761037470075,1.728,3867.5,3867.2,0.37109444]
[1761037470373,1.728,3867.6,3867.2,0.37109444]
[1761037470674,1.728,3867.6,3867.2,0.82339444]
[1761037471456,1.728,3867.7,3867.3,0.4721]
[1761037471646,1.728,3867.7,3867.3,0.6009]
[1761037471971,4.31352968,3867.7,3867.3,0.6009]
[1761037472346,4.31352968,3867.7,3867.4,0.4721]
[1761037472774,2.5855978,3867.6,3867.3,0.46406709]
[1761037472958,2.5856612,3867.5,3867.3,0.1288]
[1761037473158,2.58560218,3867.6,3867.3,0.1288]
[1761037473360,4.31353597,3867.7,3867.3,0.1288]
[1761037473560,4.31353597,3867.7,3867.3,0.6009]
[1761037473956,2.58558473,3867.6,3867.3,0.6009]
[1761037474769,1.728,3867.7,3867.3,0.6009]
[1761037474992,4.31353998,3867.7,3867.3,0.6009]
[1761037475192,2.58562664,3867.6,3867.3,0.6009]
[1761037476095,2.58565183,3867.5,3867.3,0.1288]
[1761037476775,2.58565183,3867.5,3867.1,0.1658]
[1761037476776,2.58565334,3867.5,3867.1,0.1658]
[1761037477079,4.3135236,3867.7,3867.1,0.1658]
[1761037477080,2.58560106,3867.6,3867.1,0.6379]
[1761037477584,2.58559377,3867.6,3867.2,0.4721]
[1761037478161,2.58559377,3867.6,3867.3,0.002]
[1761037478363,2.58568926,3867.5,3867.3,0.002]
[1761037478572,2.58562457,3867.6,3867.3,0.002]
[1761037478792,2.58566616,3867.5,3867.3,0.4741]
[1761037480025,1.728,3867.4,3867.3,0.002]
[1761037483505,0.2146,3868.3,3867.3,0.002]
[1761037483832,2.58550463,3867.8,3867.3,0.4741]
[1761037484016,1.728,3867.7,3867.3,0.4741]
[1761037485416,1.728,3867.8,3867.3,0.4741]
[1761037486035,4.31345306,3867.8,3867.3,0.4741]
[1761037486246,4.31346705,3867.8,3867.3,0.002]
[1761037487565,3.29,3867.9,3867.3,0.002]
[1761037487566,2.58539619,3867.9,3867.3,0.002]
[1761037487720,2.58543018,3867.9,3867.4,0.4721]
[1761037487925,2.58545372,3867.8,3867.3,0.002]
[1761037488226,0.695,3867.9,3867.3,0.002]
[1761037488448,1.728,3867.6,3867.3,0.002]
[1761037488760,2.58558776,3867.6,3867.3,0.002]
[1761037489458,1.728,3867.5,3867.3,0.002]
[1761037490055,5.017,3867.6,3867.3,0.002]
[1761037490232,1.728,3867.5,3867.3,0.002]
[1761037491070,1.728,3867.5,3867.3,0.4741]
[1761037491532,1.728,3867.6,3867.3,0.4741]
[1761037491738,2.58558709,3867.6,3867.3,0.4741]
[1761037491938,2.58558709,3867.6,3867.3,0.002]
[1761037492159,1.8568,3867.7,3867.3,0.002]
[1761037492160,10.22960655,3867.7,3867.3,0.002]
[1761037492462,2.5857165,3867.4,3867.3,0.002]
[1761037493252,8.83660492,3867.4,3867.3,0.002]
[1761037493465,10.56460492,3867.4,3867.3,0.002]
[1761037496244,10.10100492,3867.4,3867.3,0.002]
[1761037497175,1.728,3867.4,3867.3,0.002]
[1761037497675,4.3137165,3867.4,3867.3,0.002]
[1761037498463,4.7773165,3867.4,3867.3,0.002]
[1761037498662,4.9061165,3867.4,3867.3,0.002]
[1761037498977,4.7773165,3867.4,3867.3,0.002]
[1761037499179,12.83766892,3867.4,3867.3,0.002]
[1761037501369,10.53060492,3867.4,3867.3,0.002]
[1761037501747,4.3137165,3867.4,3867.3,0.002]
[1761037501949,13.81960492,3867.4,3867.3,0.002]
[1761037502281,16.84292992,3867.4,3867.3,0.002]
[1761037503485,39.91737792,3867.4,3867.3,0.002]
[1761037503654,40.59817183,3867.4,3867.3,0.002]
[1761037503853,41.0435453,3867.4,3867.3,0.002]
[1761037504283,40.26570343,3867.4,3867.3,0.002]
[1761037504587,44.16793043,3867.4,3867.3,0.002]
[1761037504770,44.50039883,3867.4,3867.3,0.002]
[1761037505151,41.85016292,3867.4,3867.3,0.002]
[1761037505577,43.81960492,3867.4,3867.3,0.002]
[1761037505890,39.70029592,3867.4,3867.3,0.002]
[1761037506455,13.81960492,3867.4,3867.3,0.002]
[1761037506787,43.81960492,3867.4,3867.3,0.002]
[1761037506971,34.18849792,3867.4,3867.3,0.002]
[1761037507288,32.04567292,3867.4,3867.3,0.002]
[1761037507471,13.81960492,3867.4,3867.3,0.002]
[1761037507678,31.67958892,3867.4,3867.3,0.002]
[1761037507868,27.66249992,3867.4,3867.3,0.002]
[1761037508582,28.18631892,3867.4,3867.3,0.002]
[1761037508793,25.90079192,3867.4,3867.3,0.002]
[1761037509154,22.61179192,3867.4,3867.3,0.002]
[1761037509355,25.90079192,3867.4,3867.3,0.002]
[1761037509660,34.05944992,3867.4,3867.3,0.002]
[1761037509849,13.1157225,3867.4,3867.3,0.002]
[1761037510087,10.5881405,3867.4,3867.3,0.002]
[1761037510287,12.6796145,3867.4,3867.3,0.002]
[1761037510508,13.1092145,3867.4,3867.3,0.002]
[1761037510709,18.2559075,3867.4,3867.3,0.002]
[1761037510913,14.7284075,3867.4,3867.3,0.002]
[1761037511421,10.5051425,3867.4,3867.3,0.002]
[1761037511629,7.6037165,3867.4,3867.3,0.002]
[1761037511933,3.29,3867.5,3867.3,0.002]
[1761037512130,2.58528467,3868.1,3867.3,0.456]
[1761037512291,8.37240778,3868.3,3867.3,0.456]
[1761037512292,3.29,3868.0,3867.3,0.456]
[1761037512622,3.29,3867.9,3867.4,2.58570703]
[1761037512786,3.29,3867.9,3867.5,0.3041707]
[1761037512991,3.29,3867.9,3867.5,3.34382013]
[1761037513190,1.728,3868.2,3867.6,2.58557497]
[1761037513429,3.29,3868.1,3867.6,0.454]
[1761037513731,3.29,3868.1,3867.7,0.454]
[1761037513905,1.728,3868.0,3867.7,0.454]
[1761037514714,3.29,3868.1,3867.8,0.02585449]
[1761037514900,3.29,3868.1,3867.8,2.61128843]
[1761037515087,3.29,3868.1,3867.9,0.454]
[1761037515088,1.728,3868.0,3867.9,0.454]
[1761037515293,2.58499215,3868.5,3867.9,0.454]
[1761037515534,0.001,3868.6,3867.9,0.7868694]
[1761037515733,1.728,3868.3,3867.9,3.37219389]
[1761037515903,0.001,3868.6,3868.0,0.454]
[1761037516096,0.001,3868.6,3868.5,0.1668]
[1761037516496,0.001,3868.6,3868.5,3.73851106]
[1761037516690,0.001,3868.6,3868.5,4.6652412]
[1761037516917,0.001,3868.6,3868.5,1.11937995]
[1761037517120,0.001,3868.6,3868.5,0.1668]
[1761037517615,3.29,3868.6,3866.4,3.8]
[1761037517758,7.51528842,3868.0,3867.1,2.7517113]
[1761037517961,1.728,3867.9,3867.1,0.596]
[1761037518261,5.017,3867.9,3867.3,0.4322]
[1761037518621,7.60238851,3867.9,3867.3,0.4322]
[1761037518823,5.017,3867.9,3867.3,0.4322]
[1761037519225,1.728,3867.7,3867.3,0.002]
[1761037519662,3.289,3867.9,3867.4,0.4302]
[1761037519857,1.728,3867.8,3867.4,0.4302]
[1761037520069,1.728,3867.8,3867.4,3.33424706]
[1761037520239,1.728,3867.8,3867.4,0.74857685]
[1761037520557,1.728,3867.8,3867.3,0.002]
[1761037520962,4.31345823,3867.8,3867.3,0.002]
[1761037521150,4.31345823,3867.8,3867.3,0.4322]
[1761037521376,1.728,3867.8,3867.3,0.4322]
[1761037521679,1.728,3867.8,3867.5,2.58558589]
[1761037521974,1.728,3868.1,3867.6,2.71438051]
[1761037522150,1.728,3868.1,3867.7,2.58550676]
[1761037522350,1.728,3868.1,3867.7,0.4302]
[1761037523776,1.728,3868.1,3867.8,2.61124578]
[1761037524173,1.728,3868.1,3867.9,0.4302]
[1761037524484,2.5849845,3868.5,3868.0,2.58527284]
[1761037524485,3.289,3868.5,3868.0,2.58527284]
[1761037524671,3.289,3868.5,3868.4,0.1668]
[1761037525591,5.017,3868.5,3868.4,0.1668]
[1761037526867,1.728,3868.5,3868.4,0.1668]
[1761037527886,1.728,3868.5,3868.4,3.50026581]
[1761037528085,0.001,3868.6,3868.5,3.09186125]
[1761037528401,0.001,3868.6,3868.5,3.54791106]
[1761037528603,0.001,3868.6,3868.4,0.1668]
[1761037528766,0.001,3868.6,3868.5,3.01518125]
[1761037528960,0.001,3868.6,3868.5,3.97147818]
[1761037529691,0.001,3868.6,3868.5,4.47835818]
[1761037529903,0.001,3868.6,3868.5,0.95629693]
[1761037530081,0.001,3868.6,3868.4,0.1668]
[1761037530270,0.001,3868.6,3868.1,3.288]
[1761037530487,0.001,3868.6,3868.1,3.4548]
[1761037530781,0.001,3868.6,3868.1,6.04003168]
[1761037530983,0.001,3868.6,3868.1,0.1668]
[1761037531695,0.001,3868.6,3868.1,2.75204024]
[1761037533083,0.001,3868.6,3868.1,0.6409]
[1761037533258,0.001,3868.6,3868.3,2.58511238]
[1761037533459,0.001,3868.6,3868.2,0.4741]
[1761037534093,2.58591927,3868.6,3868.1,0.1668]
[1761037534659,2.58591927,3868.6,3867.8,3.288]
[1761037534660,0.001,3868.6,3867.8,3.288]
[1761037534887,2.1921,3868.6,3867.8,3.288]
[1761037535089,2.584992,3868.5,3867.8,5.8734041]
[1761037535290,4.77702472,3868.6,3867.9,2.58536495]
[1761037535557,1.729,3868.6,3868.0,2.58531005]
[1761037536196,4.313933,3868.6,3868.0,2.58531005]
[1761037536397,4.313933,3868.6,3867.9,2.58536266]
[1761037536973,2.58500232,3868.5,3867.9,2.58536266]
[1761037538129,2.58500232,3868.5,3868.0,0.1288]
[1761037538274,4.3139195,3868.6,3868.0,0.1288]
[1761037538969,1.729,3868.6,3868.1,2.7520407]
[1761037539171,1.729,3868.6,3868.1,0.1668]
[1761037539400,1.729,3868.6,3868.1,0.6409]
[1761037539979,4.31393731,3868.6,3868.1,0.6409]
[1761037540911,3.04809651,3868.5,3868.0,0.1288]
[1761037541288,0.4631,3868.4,3868.0,0.1288]
[1761037541690,2.58499651,3868.5,3868.0,0.1288]
[1761037542207,3.04809651,3868.5,3868.0,0.1288]
[1761037543511,2.58499651,3868.5,3868.0,0.1288]
[1761037544808,4.3139289,3868.6,3868.0,0.1288]
[1761037545012,1.729,3868.6,3868.1,0.1668]
[1761037545393,4.3139241,3868.6,3868.1,0.1668]
[1761037546912,1.729,3868.6,3868.1,0.1668]
[1761037547115,2.1921,3868.6,3868.1,0.1668]
[1761037547812,2.58498814,3868.5,3868.1,0.1668]
[1761037547993,2.58498814,3868.5,3868.0,0.1288]
[1761037548382,3.04808814,3868.5,3868.0,0.1288]
[1761037548783,4.31393527,3868.6,3868.0,2.71411]
[1761037549617,4.31393527,3868.6,3868.1,0.1668]
[1761037550410,2.58499942,3868.5,3868.1,0.1668]
[1761037550608,4.31394223,3868.6,3868.1,0.1668]
[1761037550813,4.31394223,3868.6,3868.1,0.6409]
[1761037551524,1.729,3868.6,3868.1,3.226145]
[1761037552507,0.001,3868.6,3868.4,2.58500365]
[1761037552696,0.001,3868.6,3868.5,0.02584981]
[1761037552893,0.001,3868.6,3868.5,3.08493106]
[1761037553293,0.001,3868.6,3868.4,2.58503438]
[1761037553493,0.001,3868.6,3868.3,0.1288]
[1761037554330,0.001,3868.6,3868.3,2.71391253]
[1761037554927,0.001,3868.6,3868.3,0.1288]
[1761037555290,0.4631,3868.5,3868.1,0.002]
[1761037555626,0.4631,3868.5,3868.1,0.1308]
[1761037555627,3.04809075,3868.5,3868.1,0.1308]
[1761037555830,2.58517713,3868.3,3868.1,0.002]
[1761037555989,2.58518173,3868.2,3868.1,0.002]
[1761037556189,4.31318173,3868.2,3868.1,0.002]
[1761037556517,4.77628173,3868.2,3868.1,0.002]
[1761037558896,4.31318173,3868.2,3868.1,0.002]
[1761037560128,1.728,3868.2,3868.1,0.002]
[1761037560326,4.31318173,3868.2,3868.1,0.002]
[1761037560633,1.728,3868.2,3868.1,0.002]
[1761037560998,4.31318173,3868.2,3868.1,0.002]
[1761037561214,1.728,3868.2,3868.1,0.002]
[1761037562924,0.001,3868.6,3868.1,3.20054288]
[1761037563246,0.001,3868.6,3868.2,0.50688]
[1761037563425,0.001,3868.6,3868.3,2.58507242]
[1761037563801,0.001,3868.6,3868.4,2.58504138]
[1761037564026,0.001,3868.6,3868.1,0.74998023]
[1761037564223,3.7208,3868.5,3868.1,0.002]
[1761037564544,4.31318173,3868.2,3868.1,0.002]
[1761037565212,4.74698173,3868.2,3868.1,0.002]
[1761037565413,8.03398173,3868.2,3868.1,0.002]
[1761037565802,8.16278173,3868.2,3868.1,0.002]
[1761037567204,14.54125307,3868.2,3868.1,0.002]
[1761037567404,29.58296232,3868.2,3868.1,0.002]
[1761037568203,28.92383507,3868.2,3868.1,0.002]
[1761037568405,36.17208507,3868.2,3868.1,0.002]
[1761037568745,35.43163907,3868.2,3868.1,0.002]
[1761037568911,34.97907707,3868.2,3868.1,0.002]
[1761037569103,19.34664207,3868.2,3868.1,0.002]
[1761037569423,23.66001907,3868.2,3868.1,0.002]
[1761037570418,28.27037907,3868.2,3868.1,0.002]
[1761037570745,25.63361507,3868.2,3868.1,0.002]
[1761037571047,25.06197707,3868.2,3868.1,0.002]
[1761037571231,17.15539007,3868.2,3868.1,0.002]
[1761037571431,23.71059107,3868.2,3868.1,0.002]
[1761037572345,14.54125307,3868.2,3868.1,0.002]
[1761037572531,33.00762407,3868.2,3868.1,0.002]
[1761037572849,32.11527507,3868.2,3868.1,0.002]
[1761037573212,25.19546309,3867.8,3867.7,0.002]
[1761037573436,34.44910043,3867.8,3867.7,0.002]
[1761037573757,16.6480185,3867.4,3867.3,0.002]
[1761037574051,26.87708984,3867.4,3867.3,0.002]
[1761037574349,14.54278784,3867.4,3867.3,0.002]
[1761037574502,18.00829184,3867.4,3867.3,0.002]
[1761037574708,17.04777084,3867.4,3867.3,0.002]
[1761037575417,14.10898784,3867.4,3867.3,0.002]
[1761037577206,14.23778784,3867.4,3867.3,0.002]
[1761037577919,14.68778784,3867.4,3867.3,0.002]
[1761037579351,14.23778784,3867.4,3867.3,0.002]
[1761037581934,14.68778784,3867.4,3867.3,0.002]
[1761037583026,14.23778784,3867.4,3867.3,0.002]
[1761037583723,14.68778784,3867.4,3867.3,0.002]
[1761037585273,14.23778784,3867.4,3867.3,0.002]
[1761037586775,1.8568,3867.4,3867.3,0.002]
[1761037587068,1.728,3867.4,3867.3,0.002]
[1761037588372,1.728,3867.4,3867.3,0.02785783]
[1761037588559,1.728,3868.2,3867.3,0.4712]
[1761037588871,2.58538079,3868.0,3867.3,3.18573741]
[1761037589067,2.58538549,3867.9,3867.4,0.59374238]
[1761037589237,1.728,3868.0,3867.4,0.59374238]
[1761037589434,1.728,3868.0,3867.3,0.002]
[1761037589435,2.5857165,3867.4,3867.3,0.002]
[1761037589762,4.3137165,3867.4,3867.3,0.002]
[1761037589956,4.7637165,3867.4,3867.3,0.002]
[1761037590274,5.0961849,3867.4,3867.3,0.002]
[1761037590574,4.7637165,3867.4,3867.3,0.002]
[1761037593373,14.6179355,3867.4,3867.3,0.002]
[1761037593899,12.2029315,3867.4,3867.3,0.002]
[1761037594394,4.7637165,3867.4,3867.3,0.002]
[1761037594596,13.5835305,3867.4,3867.3,0.002]
[1761037595368,22.3433665,3867.4,3867.3,0.002]
[1761037595999,22.8009346,3867.4,3867.3,0.002]
[1761037596403,6.50727134,3866.3,3865.3,0.4544]
[1761037596568,5.1448,3866.2,3864.7,0.4544]
[1761037596773,5.1448,3866.2,3865.6,0.1288]
[1761037596774,2.58667212,3866.0,3865.6,0.1288]
[1761037597106,5.87472139,3865.9,3865.6,0.1288]
[1761037597402,3.288,3865.9,3865.6,0.1288]
[1761037597605,3.288,3865.9,3865.7,0.4544]
[1761037598183,3.288,3865.9,3865.7,0.77141859]
[1761037598770,3.288,3865.9,3865.6,0.1288]
[1761037599171,5.87473094,3865.9,3865.6,0.1288]
[1761037599700,3.288,3865.9,3865.6,0.1288]
[1761037600006,5.87472254,3865.9,3865.6,0.1288]
[1761037600203,3.288,3865.9,3865.6,0.1288]
[1761037601305,3.288,3865.9,3865.7,0.4544]
[1761037601504,3.288,3865.9,3865.6,0.1288]
[1761037602903,3.288,3865.9,3865.6,0.5832]
[1761037603608,3.288,3865.9,3865.6,0.1288]
[1761037605604,5.87472715,3865.9,3865.6,0.1288]
[1761037606110,3.288,3865.9,3865.6,0.1288]
[1761037606512,2.58679508,3865.8,3865.6,0.1288]
[1761037606815,3.5229,3865.9,3865.6,0.1288]
[1761037607111,6.10967054,3865.9,3865.6,0.1288]
[1761037607416,2.58678687,3865.8,3865.6,0.1288]
[1761037607618,2.5868536,3865.7,3865.6,0.1288]
[1761037607828,2.58696429,3865.6,3864.7,0.4544]
[1761037608029,2.58696429,3865.6,3865.0,0.1288]
[1761037608223,5.87496429,3865.6,3865.0,0.1288]
[1761037609213,2.5870058,3865.5,3865.0,0.1288]
[1761037609902,3.288,3865.6,3865.0,0.1288]
[1761037610843,3.288,3865.6,3865.0,2.71612143]
[1761037611334,5.87495394,3865.6,3865.0,0.1288]
[1761037611562,2.58710591,3865.4,3865.0,0.1288]
[1761037612037,3.04590591,3865.4,3865.0,0.1288]
[1761037612837,2.58725518,3865.1,3865.0,0.1288]
[1761037613037,2.58725518,3865.1,3864.6,0.1688]
[1761037613207,3.04605518,3865.1,3864.6,0.2976]
[1761037613834,0.4588,3865.1,3864.6,0.2976]